fUST/lending_fUST_20240705
["ID","MTS","AMOUNT","RATE_DAILY","PERIOD"]
[331251983,1720159849812,-500.0,0.00051506,120]
[331251984,1720159849820,-221.9709,0.00051506,14]
[331251985,1720159849829,-167.593566,0.00051506,14]
[331251986,1720159849838,-500.0,0.00051506,120]
[331251987,1720159849847,-537.96,0.00051506,120]
[331251988,1720159849856,-548.62830581,0.00051506,120]
[331251989,1720159849865,-500.0,0.00051506,120]
[331251990,1720159849874,-500.0,0.00051506,120]
[331251991,1720159849887,-500.0,0.00051506,120]
[331251992,1720159849896,-500.0,0.00051506,120]
[331251993,1720159849905,-500.0,0.00051506,120]
[331251994,1720159849913,-500.0,0.00051506,120]
[331251995,1720159849923,-500.0,0.00051506,120]
[331251996,1720159849932,-500.0,0.00051506,120]
[331251997,1720159849941,-500.0,0.00051506,120]
[331251998,1720159849950,-500.0,0.00051506,120]
[331251999,1720159849961,-500.0,0.00051506,120]
[331252000,1720159849971,-500.0,0.00051506,120]
[331252001,1720159849979,-500.0,0.00051506,120]
[331252002,1720159849988,-500.0,0.00051506,120]
[331252003,1720159849998,-500.0,0.00051506,120]
[331252004,1720159850006,-500.0,0.00051506,120]
[331252005,1720159850015,-500.0,0.00051506,120]
[331252006,1720159850024,-500.0,0.00051506,120]
[331252007,1720159850033,-500.0,0.00051506,120]
[331252008,1720159850042,-500.0,0.00051506,120]
[331252009,1720159850051,-500.0,0.00051506,120]
[331252010,1720159850060,-500.0,0.00051506,120]
[331252011,1720159850069,-500.0,0.00051506,120]
[331252012,1720159850078,-362.49963504,0.00051506,120]
[331252013,1720159850087,-500.0,0.00051506,120]
[331252014,1720159850096,-516.3342166,0.00051506,120]
[331252015,1720159850106,-500.0,0.00051506,120]
[331252016,1720159850115,-500.0,0.00051506,120]
[331252017,1720159850124,-537.46,0.00051506,120]
[331252018,1720159850133,-500.0,0.00051506,120]
[331252019,1720159850142,-500.0,0.00051506,120]
[331252020,1720159850152,-500.0,0.00051506,120]
[331252021,1720159850161,-500.0,0.00051506,120]
[331252022,1720159850170,-1764.94,0.00051506,21]
[331252023,1720159850179,-8962.91,0.00051506,120]
[331252024,1720159850188,-4450.98,0.00051506,120]
[331252025,1720159850197,-807.79,0.00051506,120]
[331252026,1720159850206,-502.46518827,0.00051506,120]
[331252027,1720159850215,-500.0,0.00051506,120]
[331252028,1720159850225,-500.0,0.00051506,120]
[331252029,1720159850234,-500.0,0.00051506,120]
[331252030,1720159850243,-500.0,0.00051506,120]
[331252031,1720159850252,-500.0,0.00051506,120]
[331252032,1720159850262,-500.0,0.00051506,60]
[331252033,1720159850272,-3392.42,0.00051506,120]
[331252034,1720159850281,-500.0,0.00051506,120]
[331252035,1720159850290,-500.0,0.00051506,120]
[331252036,1720159850299,-2105.17,0.00051506,120]
[331252037,1720159850308,-500.0,0.00051506,120]
[331252038,1720159850320,-500.0,0.00051506,120]
[331252039,1720159850331,-656.97,0.00051506,120]
[331252040,1720159850340,-500.0,0.00051506,120]
[331252041,1720159850350,-151.0,0.00051506,14]
[331252042,1720159850359,-500.0,0.00051506,120]
[331252043,1720159850368,-500.0,0.00051506,120]
[331252044,1720159850377,-500.0,0.00051506,120]
[331252045,1720159850386,-504.5932476,0.00051506,120]
[331252046,1720159850396,-151.0,0.00051506,14]
[331252047,1720159850405,-511.41527576,0.00051506,120]
[331252048,1720159850414,-500.0,0.00051506,120]
[331252049,1720159850423,-500.0,0.00051506,120]
[331252050,1720159850433,-500.0,0.00051506,120]
[331252051,1720159850442,-500.0,0.00051506,120]
[331252052,1720159850451,-900.16,0.00051506,120]
[331252053,1720159850461,-500.0,0.00051506,120]
[331252054,1720159850470,-500.0,0.00051506,120]
[331252055,1720159850479,-500.0,0.00051506,120]
[331252056,1720159850488,-529.87353148,0.00051506,120]
[331252057,1720159850498,-774.43,0.00051506,120]
[331252058,1720159850506,-500.0,0.00051506,120]
[331252059,1720159850516,-766.63,0.00051506,120]
[331252060,1720159850525,-500.0,0.00051506,120]
[331252061,1720159850535,-887.98,0.00051506,120]
[331252062,1720159850544,-500.0,0.00051506,120]
[331252063,1720159850554,-500.0,0.00051506,120]
[331252064,1720159850563,-667.88,0.00051506,120]
[331252065,1720159850572,-274.80066088,0.00051506,120]
[331252066,1720159850581,-500.0,0.00051506,120]
[331252067,1720159850591,-866.89,0.00051506,120]
[331252068,1720159850600,-329.0858329,0.00051506,120]
[331252069,1720159850610,-506.2557711,0.00051506,120]
[331252070,1720159850619,-500.0,0.00051506,120]
[331252071,1720159850628,-500.0,0.00051506,120]
[331252072,1720159850755,-608.07457747,0.00051506,120]
[331252073,1720159850765,-500.0,0.00051506,120]
[331252074,1720159850777,-500.0,0.00051506,120]
[331252075,1720159850787,-500.08546067,0.00051506,120]
[331252076,1720159850796,-500.0,0.00051506,120]
[331252077,1720159850805,-500.0,0.00051506,120]
[331252078,1720159850813,-500.0,0.00051506,120]
[331252079,1720159850823,-500.0,0.00051506,120]
[331252080,1720159850832,-500.0,0.00051506,120]
[331252081,1720159850841,-500.0,0.00051506,120]
[331252082,1720159850850,-500.0,0.00051506,120]
[331252083,1720159850859,-1461.72,0.00051506,120]
[331252084,1720159850868,-790.0,0.00051506,120]
[331252085,1720159850879,-500.0,0.00051506,120]
[331252086,1720159850891,-500.97538624,0.00051506,120]
[331252087,1720159850900,-330.253823,0.00051506,14]
[331252088,1720159850909,-268.901514,0.00051506,14]
[331252089,1720159850920,-3663.75,0.00051506,120]
[331252090,1720159850932,-500.0,0.00051506,120]
[331252091,1720159850943,-330.253823,0.00051506,14]
[331252092,1720159850952,-268.901514,0.00051506,14]
[331252093,1720159850962,-500.0,0.00051506,120]
[331252094,1720159850972,-500.0,0.00051506,120]
[331252095,1720159850983,-529.97,0.00051506,120]
[331252096,1720159850993,-500.0,0.00051506,120]
[331252097,1720159851003,-523.0,0.00051506,120]
[331252098,1720159851013,-500.0,0.00051506,120]
[331252099,1720159851023,-500.0,0.00051506,120]
[331252100,1720159851033,-492.02435946,0.00051506,120]
[331252101,1720159851042,-500.0,0.00051506,120]
[331252102,1720159851052,-500.0,0.00051506,120]
[331252103,1720159851061,-500.0,0.00051506,120]
[331252104,1720159851070,-500.0,0.00051506,120]
[331252105,1720159851079,-4559.97,0.00051506,120]
[331252106,1720159851088,-500.0,0.00051506,120]
[331252107,1720159851098,-746.364295,0.00051506,14]
[331252108,1720159851108,-500.0,0.00051506,120]
[331252109,1720159851117,-500.0,0.00051506,120]
[331252110,1720159851126,-1306.18,0.00051506,120]
[331252111,1720159851135,-500.0,0.00051506,120]
[331252112,1720159851145,-746.364295,0.00051506,14]
[331252113,1720159851154,-500.0,0.00051506,120]
[331252114,1720159851163,-1196.76,0.00051506,120]
[331252115,1720159851173,-500.0,0.00051506,120]
[331252116,1720159851182,-306.414096,0.00051506,14]
[331252117,1720159851191,-500.0,0.00051506,120]
[331252118,1720159851201,-306.414096,0.00051506,14]
[331252119,1720159851210,-500.0,0.00051506,120]
[331252120,1720159851219,-761.27,0.00051506,120]
[331252121,1720159851228,-151.0,0.00051506,14]
[331252122,1720159851238,-1248.81,0.00051506,120]
[331252123,1720159851247,-500.0,0.00051506,120]
[331252124,1720159851257,-881.56,0.00051506,120]
[331252125,1720159851268,-762.45,0.00051506,120]
[331252126,1720159851278,-500.0,0.00051506,120]
[331252127,1720159851287,-151.0,0.00051506,14]
[331252128,1720159851296,-500.0,0.00051506,120]
[331252129,1720159851306,-500.0,0.00051506,120]
[331252130,1720159851317,-500.0,0.00051506,2]
[331252131,1720159851326,-2669.17,0.00051506,120]
[331252132,1720159851336,-500.0,0.00051506,120]
[331252133,1720159851345,-500.0,0.00051506,120]
[331252134,1720159851355,-159.352711,0.00051506,14]
[331252135,1720159851364,-1985.97,0.00051506,120]
[331252136,1720159851373,-4427.95,0.00051506,120]
[331252137,1720159851382,-500.0,0.00051506,120]
[331252138,1720159851391,-500.0,0.00051506,120]
[331252139,1720159851400,-237.06692028,0.00051506,120]
[331252140,1720159851409,-500.0,0.00051506,120]
[331252141,1720159851418,-500.0,0.00051506,120]
[331252142,1720159851428,-500.0,0.00051506,120]
[331252143,1720159851437,-2228.02,0.00051506,120]
[331252144,1720159851446,-596.33,0.00051506,120]
[331252145,1720159851455,-500.0,0.00051506,120]
[331252146,1720159851465,-2313.42,0.00051506,120]
[331252147,1720159851474,-500.0,0.00051506,120]
[331252148,1720159851483,-551.96,0.00051506,120]
[331252149,1720159851494,-500.0,0.00051506,120]
[331252150,1720159851503,-811.44,0.00051506,120]
[331252151,1720159851512,-500.0,0.00051506,120]
[331252152,1720159851522,-500.0,0.00051506,120]
[331252153,1720159851531,-500.0,0.00051506,120]
[331252154,1720159851541,-500.0,0.00051506,120]
[331252155,1720159851550,-500.0,0.00051506,120]
[331252156,1720159851559,-500.0,0.00051506,120]
[331252157,1720159851568,-2394.84,0.00051506,120]
[331252158,1720159851578,-500.0,0.00051506,120]
[331252159,1720159851587,-501.79553133,0.00051506,120]
[331252160,1720159851596,-500.0,0.00051506,120]
[331252161,1720159851607,-1227.58,0.00051506,120]
[331252162,1720159851616,-1541.73,0.00051506,120]
[331252163,1720159851625,-500.0,0.00051506,120]
[331252164,1720159851635,-500.0,0.00051506,120]
[331252165,1720159851644,-500.0,0.00051506,120]
[331252166,1720159851654,-500.0,0.00051506,120]
[331252167,1720159851663,-500.0,0.00051506,120]
[331252168,1720159851672,-500.0,0.00051506,120]
[331252169,1720159851682,-500.0,0.00051506,120]
[331252170,1720159851691,-500.0,0.00051506,120]
[331252171,1720159851701,-151.0,0.00051506,14]
[331252172,1720159851711,-982.84,0.00051506,120]
[331252173,1720159851720,-16019.4,0.00051506,120]
[331252174,1720159851730,-877.39,0.00051506,120]
[331252175,1720159851740,-500.0,0.00051506,120]
[331252176,1720159851751,-500.0,0.00051506,120]
[331252177,1720159851760,-1283.49,0.00051506,120]
[331252178,1720159851770,-642.515274,0.00051593,2]
[331252179,1720159851781,-154.85,0.000517,51]
[331252180,1720159851791,-154.85,0.000517,51]
[331252181,1720159851800,-154.85,0.000517,51]
[331252182,1720159851809,-154.85,0.000517,51]
[331252183,1720159851818,-3663.75,0.0005178,120]
[331252184,1720159851828,-1306.18,0.0005178,120]
[331252185,1720159851838,-3663.75,0.00052054,120]
[331252186,1720159851851,-1306.18,0.00052054,120]
[331252187,1720159851861,-1000.0,0.00052152,14]
[331252188,1720159851871,-3663.75,0.00052328,120]
[331252189,1720159851882,-1306.18,0.00052328,120]
[331252190,1720159851896,-151.0,0.00052493,120]
[331252191,1720159851905,-151.0,0.00052575,120]
[331252192,1720159851915,-3663.75,0.00052602,120]
[331252193,1720159851925,-1306.18,0.00052602,120]
[331252194,1720159851934,-824.56161361,0.00052609,14]
[331252195,1720159851944,-1000.0,0.0005261,14]
[331252196,1720159851954,-1000.0,0.00052764,14]
[331252197,1720159851966,-3663.75,0.00052876,120]
[331252198,1720159851975,-1306.18,0.00052876,120]
[331252199,1720159851987,-151.0,0.00053,14]
[331252200,1720159851997,-221.9709,0.00053,14]
[331252201,1720159852007,-221.9709,0.00053,14]
[331252202,1720159852016,-3663.75,0.0005315,120]
[331252203,1720159852025,-1306.18,0.0005315,120]
[331252204,1720159852036,-1000.0,0.00053249,14]
[331252205,1720159852046,-1000.0,0.00053293,14]
[331252206,1720159852056,-380.41987817,0.00053389,14]
[331252207,1720159852066,-623.98823786,0.0005342,14]
[331252208,1720159852076,-151.0,0.00053424,14]
[331252209,1720159852085,-3663.75,0.00053424,120]
[331252210,1720159852094,-1306.18,0.00053424,120]
[331252211,1720159852105,-159.369575,0.00053425,2]
[331252212,1720159852114,-241.0547,0.0005343,2]
[331252213,1720159852123,-2000.0,0.000535,120]
[331252214,1720159852132,-2000.0,0.000535,120]
[331252215,1720159852142,-2000.0,0.000535,120]
[331252216,1720159852151,-2000.0,0.000535,120]
[331252217,1720159852161,-1000.0,0.00053593,14]
[331252218,1720159852170,-373.0,0.000536,32]
[331252219,1720159852181,-1000.0,0.00053609,14]
[331252220,1720159852190,-1000.0,0.00053641,14]
[331252221,1720159852199,-1000.0,0.00053669,14]
[331252222,1720159852209,-156.34779854,0.00053698,120]
[331252223,1720159852218,-533.92,0.00053698,120]
[331252224,1720159852227,-500.0,0.00053698,120]
[331252225,1720159852236,-500.0,0.00053698,120]
[331252226,1720159852245,-500.0,0.00053698,120]
[331252227,1720159852255,-500.0,0.00053698,120]
[331252228,1720159852264,-500.0,0.00053698,120]
[331252229,1720159852273,-218.22437236,0.00053698,120]
[331252230,1720159852282,-500.0,0.00053698,120]
[331252231,1720159852292,-507.29239124,0.00053698,120]
[331252232,1720159852301,-269.35415201,0.00053698,120]
[331252233,1720159852310,-500.0,0.00053698,120]
[331252234,1720159852321,-500.0,0.00053698,120]
[331252235,1720159852331,-500.0,0.00053698,120]
[331252236,1720159852340,-500.0,0.00053698,120]
[331252237,1720159852349,-500.0,0.00053698,120]
[331252238,1720159852359,-500.0,0.00053698,120]
[331252239,1720159852368,-500.0,0.00053698,120]
[331252240,1720159852378,-500.0,0.00053698,120]
[331252241,1720159852387,-500.0,0.00053698,120]
[331252242,1720159852397,-500.0,0.00053698,120]
[331252243,1720159852406,-500.0,0.00053698,120]
[331252244,1720159852415,-500.0,0.00053698,120]
[331252245,1720159852424,-706.79,0.00053698,120]
[331252246,1720159852434,-509.05131595,0.00053698,120]
[331252247,1720159852443,-500.0,0.00053698,120]
[331252248,1720159852453,-527.88,0.00053698,120]
[331252249,1720159852462,-500.0,0.00053698,120]
[331252250,1720159852471,-500.0,0.00053698,120]
[331252251,1720159852481,-500.0,0.00053698,120]
[331252252,1720159852491,-500.0,0.00053698,120]
[331252253,1720159852500,-500.0,0.00053698,120]
[331252254,1720159852509,-500.0,0.00053698,120]
[331252255,1720159852518,-500.0,0.00053698,120]
[331252256,1720159852528,-500.0,0.00053698,120]
[331252257,1720159852537,-500.0,0.00053698,120]
[331252258,1720159852547,-500.0,0.00053698,120]
[331252259,1720159852556,-500.0,0.00053698,120]
[331252260,1720159852565,-500.0,0.00053698,120]
[331252261,1720159852574,-500.0,0.00053698,120]
[331252262,1720159852584,-500.0,0.00053698,120]
[331252263,1720159852593,-500.0,0.00053698,120]
[331252264,1720159852602,-500.0,0.00053698,120]
[331252265,1720159852611,-212.70649737,0.00053698,120]
[331252266,1720159852621,-500.0,0.00053698,120]
[331252267,1720159852631,-500.0,0.00053698,120]
[331252268,1720159852641,-504.3325901,0.00053698,120]
[331252269,1720159852650,-500.0,0.00053698,120]
[331252270,1720159852660,-1183.84,0.00053698,120]
[331252271,1720159852669,-500.0,0.00053698,120]
[331252272,1720159852678,-500.0,0.00053698,120]
[331252273,1720159852687,-352.72986547,0.00053698,120]
[331252274,1720159852696,-504.01735712,0.00053698,120]
[331252275,1720159852706,-929.93,0.00053698,120]
[331252276,1720159852715,-446.02590922,0.00053698,120]
[331252277,1720159852724,-500.0,0.00053698,120]
[331252278,1720159852734,-173.60896826,0.00053698,20]
[331252279,1720159852743,-500.0,0.00053698,120]
[331252280,1720159852753,-500.0,0.00053698,120]
[331252281,1720159852762,-202.74511069,0.00053698,120]
[331252282,1720159852772,-500.0,0.00053698,120]
[331252283,1720159852781,-500.0,0.00053698,14]
[331252284,1720159852790,-500.0,0.00053698,120]
[331252285,1720159852799,-1576.3,0.00053698,120]
[331252286,1720159852809,-500.0,0.00053698,120]
[331252287,1720159852818,-151.0,0.00053698,14]
[331252288,1720159852828,-500.0,0.00053698,120]
[331252289,1720159852838,-500.0,0.00053698,120]
[331252290,1720159852847,-503.40490929,0.00053698,120]
[331252291,1720159852857,-500.0,0.00053698,120]
[331252292,1720159852867,-500.0,0.00053698,120]
[331252293,1720159852877,-500.0,0.00053698,120]
[331252294,1720159852891,-509.90982917,0.00053698,120]
[331252295,1720159852900,-500.0,0.00053698,120]
[331252296,1720159852910,-502.81848152,0.00053698,120]
[331252297,1720159852920,-500.0,0.00053698,120]
[331252298,1720159852931,-500.0,0.00053698,120]
[331252299,1720159852940,-179.31819543,0.00053698,120]
[331252300,1720159852950,-500.0,0.00053698,20]
[331252301,1720159852961,-198.302613,0.00053698,14]
[331252302,1720159852971,-198.302613,0.00053698,14]
[331252303,1720159852980,-500.0,0.00053698,120]
[331252304,1720159852989,-500.0,0.00053698,120]
[331252305,1720159852998,-500.0,0.00053698,120]
[331252306,1720159853008,-510.32976558,0.00053698,120]
[331252307,1720159853018,-500.0,0.00053698,120]
[331252308,1720159853027,-151.0,0.00053698,14]
[331252309,1720159853037,-500.0,0.00053698,120]
[331252310,1720159853046,-500.0,0.00053698,120]
[331252311,1720159853055,-500.0,0.00053698,120]
[331252312,1720159853065,-500.0,0.00053698,120]
[331252313,1720159853074,-500.0,0.00053698,120]
[331252314,1720159853084,-500.0,0.00053698,120]
[331252315,1720159853093,-500.0,0.00053698,120]
[331252316,1720159853103,-500.0,0.00053698,120]
[331252317,1720159853112,-500.0,0.00053698,120]
[331252318,1720159853121,-500.0,0.00053698,120]
[331252319,1720159853131,-500.0,0.00053698,120]
[331252320,1720159853141,-934.13,0.00053698,120]
[331252321,1720159853150,-500.0,0.00053698,120]
[331252322,1720159853159,-500.0,0.00053698,120]
[331252323,1720159853169,-500.0,0.00053698,120]
[331252324,1720159853178,-155.480157,0.00053698,14]
[331252325,1720159853188,-877.53,0.00053698,120]
[331252326,1720159853198,-500.0,0.00053698,120]
[331252327,1720159853208,-169.16382834,0.00053698,120]
[331252328,1720159853217,-500.0,0.00053698,120]
[331252329,1720159853227,-500.0,0.00053698,120]
[331252330,1720159853237,-500.0,0.00053698,120]
[331252331,1720159853246,-1103.83,0.00053698,120]
[331252332,1720159853257,-500.0,0.00053698,120]
[331252333,1720159853266,-500.0,0.00053698,120]
[331252334,1720159853275,-1051.27,0.00053698,120]
[331252335,1720159853284,-500.0,0.00053698,120]
[331252336,1720159853293,-151.0,0.00053698,14]
[331252337,1720159853302,-500.0,0.00053698,120]
[331252338,1720159853312,-505.15032901,0.00053698,120]
[331252339,1720159853323,-500.0,0.00053698,120]
[331252340,1720159853333,-500.0,0.00053698,120]
[331252341,1720159853342,-500.0,0.00053698,120]
[331252342,1720159853352,-219.91,0.00053698,7]
[331252343,1720159853362,-500.0,0.00053698,120]
[331252344,1720159853371,-500.0,0.00053698,120]
[331252345,1720159853380,-174.99,0.00053698,120]
[331252346,1720159853389,-500.0,0.00053698,120]
[331252347,1720159853399,-500.0,0.00053698,120]
[331252348,1720159853408,-500.0,0.00053698,120]
[331252349,1720159853418,-500.0,0.00053698,120]
[331252350,1720159853427,-500.0,0.00053698,120]
[331252351,1720159853437,-500.0,0.00053698,120]
[331252352,1720159853447,-500.0,0.00053698,120]
[331252353,1720159853456,-500.0,0.00053698,120]
[331252354,1720159853466,-500.0,0.00053698,120]
[331252355,1720159853476,-500.0,0.00053698,120]
[331252356,1720159853485,-13556.68,0.00053698,120]
[331252357,1720159853495,-500.0,0.00053698,120]
[331252358,1720159853504,-500.0,0.00053698,120]
[331252359,1720159853514,-500.0,0.00053698,120]
[331252360,1720159853523,-500.0,0.00053698,120]
[331252361,1720159853533,-500.0,0.00053698,120]
[331252362,1720159853542,-500.0,0.00053698,30]
[331252363,1720159853664,-500.0,0.00053698,120]
[331252364,1720159853674,-500.0,0.00053698,120]
[331252365,1720159853684,-500.0,0.00053698,120]
[331252366,1720159853694,-500.0,0.00053698,120]
[331252367,1720159853703,-12140.5,0.00053698,120]
[331252368,1720159853712,-500.0,0.00053698,120]
[331252369,1720159853722,-861.77,0.00053698,120]
[331252370,1720159853732,-500.0,0.00053698,120]
[331252371,1720159853741,-500.0,0.00053698,120]
[331252372,1720159853750,-500.0,0.00053698,120]
[331252373,1720159853760,-500.0,0.00053698,120]
[331252374,1720159853770,-221.9709,0.00053698,14]
[331252375,1720159853780,-500.0,0.00053698,120]
[331252376,1720159853789,-500.0,0.00053698,120]
[331252377,1720159853799,-500.0,0.00053698,120]
[331252378,1720159853808,-500.0,0.00053698,120]
[331252379,1720159853818,-221.9709,0.00053698,14]
[331252380,1720159853827,-537.96,0.00053698,120]
[331252381,1720159853836,-500.0,0.00053698,120]
[331252382,1720159853846,-500.0,0.00053698,120]
[331252383,1720159853857,-500.0,0.00053698,120]
[331252384,1720159853865,-500.0,0.00053698,120]
[331252385,1720159853874,-500.0,0.00053698,120]
[331252386,1720159853888,-500.0,0.00053698,120]
[331252387,1720159853899,-500.0,0.00053698,120]
[331252388,1720159853908,-500.0,0.00053698,120]
[331252389,1720159853918,-500.0,0.00053698,120]
[331252390,1720159853929,-500.0,0.00053698,120]
[331252391,1720159853939,-500.0,0.00053698,120]
[331252392,1720159853948,-500.0,0.00053698,120]
[331252393,1720159853959,-500.0,0.00053698,120]
[331252394,1720159853968,-500.0,0.00053698,120]
[331252395,1720159853979,-500.0,0.00053698,120]
[331252396,1720159853989,-500.0,0.00053698,120]
[331252397,1720159853998,-500.0,0.00053698,120]
[331252398,1720159854007,-500.0,0.00053698,120]
[331252399,1720159854016,-500.0,0.00053698,120]
[331252400,1720159854025,-500.0,0.00053698,120]
[331252401,1720159854034,-500.0,0.00053698,120]
[331252402,1720159854044,-500.0,0.00053698,120]
[331252403,1720159854053,-500.0,0.00053698,120]
[331252404,1720159854063,-537.46,0.00053698,120]
[331252405,1720159854072,-331.88807004,0.00053698,120]
[331252406,1720159854081,-500.0,0.00053698,120]
[331252407,1720159854091,-500.0,0.00053698,120]
[331252408,1720159854100,-1764.94,0.00053698,21]
[331252409,1720159854110,-8962.91,0.00053698,120]
[331252410,1720159854119,-4450.98,0.00053698,120]
[331252411,1720159854128,-807.79,0.00053698,120]
[331252412,1720159854137,-500.0,0.00053698,120]
[331252413,1720159854146,-500.0,0.00053698,120]
[331252414,1720159854155,-500.0,0.00053698,120]
[331252415,1720159854165,-500.0,0.00053698,120]
[331252416,1720159854173,-500.0,0.00053698,60]
[331252417,1720159854182,-3392.42,0.00053698,120]
[331252418,1720159854192,-500.0,0.00053698,120]
[331252419,1720159854201,-500.0,0.00053698,120]
[331252420,1720159854210,-2105.17,0.00053698,120]
[331252421,1720159854220,-500.0,0.00053698,120]
[331252422,1720159854229,-500.0,0.00053698,120]
[331252423,1720159854238,-656.97,0.00053698,120]
[331252424,1720159854248,-500.0,0.00053698,120]
[331252425,1720159854258,-151.0,0.00053698,14]
[331252426,1720159854267,-500.0,0.00053698,120]
[331252427,1720159854276,-151.0,0.00053698,14]
[331252428,1720159854286,-500.0,0.00053698,120]
[331252429,1720159854295,-154.973785,0.00053698,14]
[331252430,1720159854304,-500.0,0.00053698,120]
[331252431,1720159854313,-500.0,0.00053698,120]
[331252432,1720159854326,-500.0,0.00053698,120]
[331252433,1720159854336,-602.72424353,0.00053698,120]
[331252434,1720159854346,-900.16,0.00053698,120]
[331252435,1720159854356,-500.0,0.00053698,120]
[331252436,1720159854365,-500.0,0.00053698,120]
[331252437,1720159854374,-501.96518198,0.00053698,120]
[331252438,1720159854384,-774.43,0.00053698,120]
[331252439,1720159854393,-500.0,0.00053698,120]
[331252440,1720159854403,-766.63,0.00053698,120]
[331252441,1720159854412,-500.0,0.00053698,120]
[331252442,1720159854423,-887.98,0.00053698,120]
[331252443,1720159854432,-500.0,0.00053698,120]
[331252444,1720159854442,-500.0,0.00053698,120]
[331252445,1720159854452,-667.88,0.00053698,120]
[331252446,1720159854461,-500.0,0.00053698,120]
[331252447,1720159854471,-866.89,0.00053698,120]
[331252448,1720159854481,-500.0,0.00053698,120]
[331252449,1720159854490,-500.0,0.00053698,120]
[331252450,1720159854499,-500.0,0.00053698,120]
[331252451,1720159854509,-500.0,0.00053698,120]
[331252452,1720159854518,-455.82,0.00053698,120]
[331252453,1720159854528,-500.0,0.00053698,120]
[331252454,1720159854538,-500.0,0.00053698,120]
[331252455,1720159854547,-500.0,0.00053698,120]
[331252456,1720159854556,-500.0,0.00053698,120]
[331252457,1720159854565,-500.0,0.00053698,120]
[331252458,1720159854574,-1461.72,0.00053698,120]
[331252459,1720159854583,-790.0,0.00053698,120]
[331252460,1720159854593,-500.0,0.00053698,120]
[331252461,1720159854603,-330.253823,0.00053698,14]
[331252462,1720159854612,-330.253823,0.00053698,14]
[331252463,1720159854622,-268.901514,0.00053698,14]
[331252464,1720159854631,-268.901514,0.00053698,14]
[331252465,1720159854641,-500.0,0.00053698,120]
[331252466,1720159854650,-330.253823,0.00053698,14]
[331252467,1720159854659,-3663.75,0.00053698,120]
[331252468,1720159854668,-330.253823,0.00053698,14]
[331252469,1720159854677,-268.901514,0.00053698,14]
[331252470,1720159854687,-268.901514,0.00053698,14]
[331252471,1720159854696,-500.0,0.00053698,120]
[331252472,1720159854706,-500.0,0.00053698,120]
[331252473,1720159854715,-529.97,0.00053698,120]
[331252474,1720159854724,-500.0,0.00053698,120]
[331252475,1720159854734,-523.0,0.00053698,120]
[331252476,1720159854743,-500.0,0.00053698,120]
[331252477,1720159854753,-500.0,0.00053698,120]
[331252478,1720159854762,-500.0,0.00053698,120]
[331252479,1720159854771,-500.0,0.00053698,120]
[331252480,1720159854780,-500.0,0.00053698,120]
[331252481,1720159854790,-500.0,0.00053698,120]
[331252482,1720159854800,-4559.97,0.00053698,120]